[Event "EIWCC 2017"]
[Site "Riga"]
[Date "2017.04.13"]
[Round "3"]
[White "Sedina, Elena"]
[Black "Mkrtchian, Lilit"]
[Result "1-0"]
[ECO "B10"]
[WhiteElo "2253"]
[BlackElo "2425"]
[Annotator "TA"]
[PlyCount "131"]
[EventDate "2017.??.??"]
[EventType "swiss"]
[EventCountry "LAT"]
[SourceTitle "playchess.com"]
[Source "ChessBase"]
[SourceQuality "1"]
[TimeControl "40/5400+30:1800+30"]

1. e4 {[%emt 0:01:34]} c6 {[%emt 0:00:20]} 2. c4 {[%emt 0:01:24]} d5 {[%emt 0:00:49]} 3. exd5 {[%emt 0:00:10]} cxd5 {[%emt 0:00:12]} 4. cxd5 {[%emt 0:03:56]} Nf6 {[%emt 0:00:15]} 5. Nc3 {[%emt 0:00:12]} Nxd5 {[%emt 0:00:12]} 6. Nf3 {[%emt 0:00:14]} Nc6 {[%emt 0:00:15]} 7. Bb5 {[%emt 0:03:10]} g6 {[%emt 0:00:47]} 8. Qa4 {[%emt 0:13:09]} Qd6 {[%emt 0:01:12]} 9. O-O {[%emt 0:18:20]} Bg7 {[%emt 0:01:42]} 10. Ne4 {[%emt 0:13:08]} Qc7 {[%emt 0:02:13]} 11. d4 {[%emt 0:06:00]} O-O {[%emt 0:02:02]} 12. Bd2 {[%emt 0:13:26]} Bf5 {[%emt 0:18:35]} 13. Rfe1 {[%emt 0:03:39]} Nb6 {[%emt 0:02:12]} 14. Qc2 {[%emt 0:00:21]} Rac8 {[%emt 0:01:14]} 15. Bxc6 {[%emt 0:10:21]} Qxc6 {[%emt 0:01:31]} 16. Qxc6 {[%emt 0:00:23]} Rxc6 {[%emt 0:00:22]} 17. Nc5 {[%emt 0:01:05]} Nd5 {[%emt 0:02:35]} 18. Ne5 {[%emt 0:03:25]} Rc7 {[%emt 0:00:44]} 19. Rac1 {[%emt 0:00:29]} Rd8 {[%emt 0:08:06]} 20. h3 {[%emt 0:00:04]} f6 {[%emt 0:06:16]} 21. Ng4 {[%emt 0:03:43]} b6 {[%emt 0:10:33]} 22. Ne6 {[%emt 0:00:35]} Bxe6 {[%emt 0:00:41]} 23. Rxe6 {[%emt 0:00:00]} Rxc1+ {[%emt 0:00:16]} 24. Bxc1 {[%emt 0:00:01]} Rc8 {[%emt 0:07:16]} 25. Re1 {[%emt 0:00:33]} Rc2 {[%emt 0:00:29]} 26. a3 {[%emt 0:02:37]} Kf7 {[%emt 0:00:29]} 27. b4 {[%emt 0:00:35]} f5 {[%emt 0:12:27]} 28. Ne3 {[%emt 0:00:19]} Nxe3 {[%emt 0:00:20]} 29. Bxe3 {[%emt 0:00:04]} Ra2 {[%emt 0:04:59]} 30. Bg5 {[%emt 0:00:49]} h6 {[%emt 0:01:13]} 31. Be3 {[%emt 0:01:04]} Rxa3 {[%emt 0:02:11]} 32. Rc1 {[%emt 0:00:01]} Rb3 {[%emt 0:00:29]} 33. d5 {[%emt 0:01:08]} Rxb4 {[%emt 0:03:00]} 34. d6 {[%emt 0:00:02]} exd6 {[%emt 0:01:01]} 35. Rc7+ {[%emt 0:00:08]} Kg8 {[%emt 0:00:09]} 36. Rxa7 {[%emt 0:00:09]} f4 {[%emt 0:02:04]} 37. Bd2 {[%emt 0:00:30]} Rb1+ {[%emt 0:02:59]} 38. Kh2 {[%emt 0:00:03]} g5 {[%emt 0:01:21]} 39. h4 {[%emt 0:01:33]} Rb2 {[%emt 0:03:56]} 40. Rxg7+ {[%emt 0:00:00]} Kf8 {[%emt 0:02:05]} 41. Bc3 {[%emt 0:07:48]} Rc2 {[%emt 0:03:06]} 42. Bd4 {[%emt 0:09:59]} Rd2 {[%emt 0:06:22]} 43. Bc3 {[%emt 0:00:06]} Rc2 {[%emt 0:04:00]} 44. Bf6 {[%emt 0:00:08]} Rxf2 {[%emt 0:00:34]} 45. hxg5 {[%emt 0:00:17]} hxg5 {[%emt 0:00:46]} 46. Kg1 {[%emt 0:00:22]} Re2 {[%emt 0:05:22]} 47. Rxg5 {[%emt 0:00:08]} Kf7 {[%emt 0:00:16]} 48. Bd4 {[%emt 0:00:53]} Re4 {[%emt 0:00:49]} 49. Bxb6 {[%emt 0:00:13]} Ke6 {[%emt 0:00:26]} 50. Rg6+ {[%emt 0:04:50]} Ke5 {[%emt 0:01:55]} 51. Bc7 {[%emt 0:00:14]} Rd4 {[%emt 0:00:40]} 52. Kf2 {[%emt 0:04:35]} Rd2+ {[%emt 0:00:34]} 53. Kf3 {[%emt 0:00:19]} Rd3+ {[%emt 0:01:29]} 54. Ke2 {[%emt 0:01:03]} Re3+ {[%emt 0:01:46]} 55. Kf2 {[%emt 0:00:00]} Rc3 {[%emt 0:05:06]} 56. Bxd6+ {[%emt 0:00:08]} Kf5 {[%emt 0:00:04]} 57. Rg8 {[%emt 0:00:08]} Rc2+ {[%emt 0:00:07]} 58. Kg1 {[%emt 0:00:34]} Rc1+ {[%emt 0:00:11]} 59. Kh2 {[%emt 0:00:18]} Rf1 {[%emt 0:00:08]} 60. Rf8+ {[%emt 0:00:38]} Kg4 {[%emt 0:00:06]} 61. Rxf4+ {[%emt 0:00:09]} Rxf4 {[%emt 0:00:11]} 62. Bxf4 {[%emt 0:00:07]} Kxf4 {[%emt 0:00:03]} 63. Kh3 {[%emt 0:00:04]} Kg5 {[%emt 0:00:10]} 64. Kg3 {[%emt 0:00:05]} Kf5 {[%emt 0:00:10]} 65. Kh4 {[%emt 0:00:05]} Kg6 {[%emt 0:00:16]} 66. Kg4 {[%emt 0:00:03]} 1-0

[Event "EIWCC 2017"]
[Site "Riga"]
[Date "2017.04.13"]
[Round "3"]
[White "Abdulla, Khayala"]
[Black "Gaponenko, Inna"]
[Result "1/2-1/2"]
[ECO "B06"]
[WhiteElo "2241"]
[BlackElo "2416"]
[Annotator "ChessBase"]
[PlyCount "99"]
[EventDate "2017.??.??"]
[EventType "swiss"]
[EventCountry "LAT"]
[SourceTitle "playchess.com"]
[Source "ChessBase"]
[SourceQuality "1"]
[TimeControl "40/5400+30:1800+30"]

1. e4 {[%emt 0:00:00]} g6 {[%emt 0:00:04]} 2. d4 {[%emt 0:00:00]} Bg7 {[%emt 0:00:04]} 3. Nc3 {[%emt 0:00:00]} c6 {[%emt 0:00:04]} 4. Be3 {[%emt 0:02:30]} d5 {[%emt 0:00:42]} 5. Nf3 {[%emt 0:02:52]} dxe4 {[%emt 0:18:44]} 6. Nxe4 {[%emt 0:00:39]} Nh6 {[%emt 0:00:24]} 7. c3 {[%emt 0:09:10]} Nf5 {[%emt 0:07:59]} 8. Bf4 {[%emt 0:01:11]} O-O {[%emt 0:00:59]} 9. Bd3 {[%emt 0:01:35]} Nd7 {[%emt 0:07:47]} 10. O-O {[%emt 0:02:20]} Nb6 {[%emt 0:04:17]} 11. Ng3 {[%emt 0:05:34]} Nd5 {[%emt 0:17:56]} 12. Nxf5 {[%emt 0:02:32]} Nxf4 {[%emt 0:01:19]} 13. Nxg7 {[%emt 0:00:15]} Kxg7 {[%emt 0:00:47]} 14. Qd2 {[%emt 0:05:27]} Nxd3 {[%emt 0:08:37]} 15. Qxd3 {[%emt 0:00:29]} Bg4 {[%emt 0:01:28]} 16. Ne5 {[%emt 0:01:49]} Bf5 {[%emt 0:00:09]} 17. Qe3 {[%emt 0:00:54]} f6 {[%emt 0:05:45]} 18. Nf3 {[%emt 0:01:52]} Re8 {[%emt 0:02:43]} 19. Rfe1 {[%emt 0:01:18]} Qd5 {[%emt 0:02:14]} 20. b3 {[%emt 0:07:48]} Rad8 {[%emt 0:07:52]} 21. c4 {[%emt 0:04:37]} Qa5 {[%emt 0:01:28]} 22. Qf4 {[%emt 0:00:29]} Bc8 {[%emt 0:03:16]} 23. h3 {[%emt 0:09:26]} c5 {[%emt 0:02:47]} 24. d5 {[%emt 0:02:42]} b5 {[%emt 0:00:01]} 25. Re2 {[%emt 0:03:06]} bxc4 {[%emt 0:00:13]} 26. bxc4 {[%emt 0:00:12]} e5 {[%emt 0:00:31]} 27. dxe6 {[%emt 0:01:48]} Bxe6 {[%emt 0:03:14]} 28. Rae1 {[%emt 0:11:04]} Bf7 {[%emt 0:00:01]} 29. Rxe8 {[%emt 0:01:48]} Rxe8 {[%emt 0:00:02]} 30. Rd1 {[%emt 0:06:48]} Rd8 {[%emt 0:02:26]} 31. Re1 {[%emt 0:02:12]} Re8 {[%emt 0:00:04]} 32. Rd1 {[%emt 0:00:38]} Rd8 {[%emt 0:00:59]} 33. Re1 {[%emt 0:00:02]} Rd7 {[%emt 0:01:27]} 34. h4 {[%emt 0:08:01]} h5 {[%emt 0:00:33]} 35. Qb8 {[%emt 0:04:05]} Qc7 {[%emt 0:00:21]} 36. Qb5 {[%emt 0:00:39]} Re7 {[%emt 0:00:30]} 37. Rd1 {[%emt 0:00:15]} Qb6 {[%emt 0:00:19]} 38. a4 {[%emt 0:01:07]} Qxb5 {[%emt 0:00:15]} 39. cxb5 {[%emt 0:00:03]} Bb3 {[%emt 0:00:56]} 40. Rc1 {[%emt 0:00:01]} c4 {[%emt 0:30:39]} 41. Nd4 {[%emt 0:31:53]} Re4 {[%emt 0:00:20]} 42. Nc6 {[%emt 0:01:07]} Bxa4 {[%emt 0:00:00]} 43. Nxa7 {[%emt 0:00:00]} Re7 {[%emt 0:00:00]} 44. Nc8 {[%emt 0:00:00]} Rb7 {[%emt 0:00:00]} 45. Nd6 {[%emt 0:00:00]} Rb6 {[%emt 0:00:00]} 46. Rxc4 {[%emt 0:00:00]} Bxb5 {[%emt 0:00:00]} 47. Rc7+ {[%emt 0:00:00]} Kh8 {[%emt 0:00:00]} 48. Rc8+ {[%emt 0:00:00]} Kg7 {[%emt 0:00:00]} 49. Rc7+ {[%emt 0:00:00]} Kh8 {[%emt 0:00:00]} 50. Rc8+ {[%emt 0:00:00]} 1/2-1/2

[Event "EIWCC 2017"]
[Site "Riga"]
[Date "2017.04.13"]
[Round "3"]
[White "Drljevic, Ljilja"]
[Black "Houska, Jovanka"]
[Result "1/2-1/2"]
[ECO "B10"]
[WhiteElo "2237"]
[BlackElo "2397"]
[Annotator "NA"]
[PlyCount "85"]
[EventDate "2017.??.??"]
[EventType "swiss"]
[EventCountry "LAT"]
[SourceTitle "playchess.com"]
[Source "ChessBase"]
[SourceQuality "1"]
[TimeControl "40/5400+30:1800+30"]

1. e4 {[%emt 0:00:00]} c6 {[%emt 0:00:06]} 2. d3 {[%emt 0:00:00]} d5 {[%emt 0:00:13]} 3. Nd2 {[%emt 0:00:00]} e5 {[%emt 0:00:12]} 4. Ngf3 {[%emt 0:00:00]} Qc7 {[%emt 0:00:16]} 5. g3 {[%emt 0:02:59]} Nf6 {[%emt 0:00:05]} 6. Bg2 {[%emt 0:00:04]} Bd6 {[%emt 0:00:03]} 7. h3 {[%emt 0:02:32]} O-O {[%emt 0:06:51]} 8. O-O {[%emt 0:00:28]} Nbd7 {[%emt 0:00:23]} 9. Re1 {[%emt 0:01:21]} a5 {[%emt 0:02:24]} 10. a4 {[%emt 0:04:11]} Re8 {[%emt 0:06:17]} 11. b3 {[%emt 0:03:49]} b6 {[%emt 0:03:22]} 12. Bb2 {[%emt 0:04:42]} Ba6 {[%emt 0:07:08]} 13. d4 $11 {[%emt 0:07:36]} exd4 {[%emt 0:39:45]} 14. Nxd4 {[%emt 0:06:40]} Bb4 {[%emt 0:01:02]} 15. Nf5 {[%emt 0:09:52]} Rad8 {[%emt 0:08:19]} 16. exd5 {[%emt 0:06:38]} cxd5 {[%emt 0:03:44]} 17. Rxe8+ {[%emt 0:09:06]} Rxe8 {[%emt 0:00:04]} 18. c4 {[%emt 0:00:25]} dxc4 {[%emt 0:01:59]} 19. Nxc4 {[%emt 0:04:15]} Re1+ {[%emt 0:03:03]} 20. Qxe1 {[%emt 0:00:05]} Bxe1 {[%emt 0:00:05]} 21. Rxe1 {[%emt 0:00:11]} Bxc4 {[%emt 0:03:10]} 22. bxc4 {[%emt 0:02:31]} h5 {[%emt 0:01:57]} 23. Bc6 {[%emt 0:05:41]} Kh7 {[%emt 0:02:36]} 24. Bb5 {[%emt 0:01:37]} Qc5 {[%emt 0:03:20]} 25. Nxg7 {[%emt 0:01:04]} Kxg7 {[%emt 0:02:45]} 26. Bxd7 {[%emt 0:00:04]} Qb4 {[%emt 0:02:50]} 27. Bxf6+ {[%emt 0:12:53]} Kxf6 {[%emt 0:00:03]} 28. Re3 {[%emt 0:00:28]} Qxc4 {[%emt 0:00:39]} 29. Rf3+ {[%emt 0:03:31]} Kg7 {[%emt 0:01:32]} 30. Rf4 {[%emt 0:01:31]} Qd5 {[%emt 0:00:28]} 31. Bb5 {[%emt 0:00:33]} Qd1+ {[%emt 0:00:31]} 32. Kg2 {[%emt 0:00:22]} f6 {[%emt 0:00:21]} 33. Kh2 {[%emt 0:01:08]} Kf7 {[%emt 0:00:45]} 34. Kg2 {[%emt 0:00:52]} Kg7 {[%emt 0:00:23]} 35. Kh2 {[%emt 0:00:28]} Kf7 {[%emt 0:00:25]} 36. Kg2 {[%emt 0:01:13]} Kg7 {[%emt 0:00:04]} 37. Rh4 {[%emt 0:03:55]} Qd5+ {[%emt 0:00:33]} 38. Kg1 {[%emt 0:00:49]} Qd1+ {[%emt 0:00:03]} 39. Kg2 {[%emt 0:00:09]} Qd5+ {[%emt 0:00:05]} 40. Kh2 {[%emt 0:00:00]} Qf3 {[%emt 0:01:29]} 41. Rf4 {[%emt 0:02:56]} Qd1 {[%emt 0:00:33]} 42. h4 {[%emt 0:02:54]} Qd5 {[%emt 0:10:28]} 43. Bc4 {[%emt 0:00:30]} 1/2-1/2

[Event "EIWCC 2017"]
[Site "Riga"]
[Date "2017.04.13"]
[Round "3"]
[White "Toma, Katarzyna"]
[Black "Ozbay, Ece"]
[Result "1-0"]
[ECO "B24"]
[WhiteElo "2229"]
[BlackElo "2035"]
[Annotator "NA"]
[PlyCount "173"]
[EventDate "2017.??.??"]
[EventType "swiss"]
[EventCountry "LAT"]
[SourceTitle "playchess.com"]
[Source "ChessBase"]
[SourceQuality "1"]
[TimeControl "40/5400+30:1800+30"]

1. e4 {[%emt 0:00:00]} c5 {[%emt 0:00:31]} 2. Nc3 {[%emt 0:00:00]} Nc6 {[%emt 0:00:16]} 3. Bb5 {[%emt 0:00:00]} Nd4 {[%emt 0:01:09]} 4. Bc4 {[%emt 0:00:00]} g6 {[%emt 0:03:53]} 5. Nf3 {[%emt 0:00:02]} Bg7 {[%emt 0:00:31]} 6. Nxd4 {[%emt 0:00:13]} cxd4 {[%emt 0:00:09]} 7. Qf3 {[%emt 0:00:07]} Nh6 {[%emt 0:00:35]} 8. Ne2 {[%emt 0:00:12]} O-O {[%emt 0:06:20]} 9. c3 {[%emt 0:00:15] B23: Closed Sicilian: Lines without g3} (9. h3 e6 10. d3 f5 11. Qg3 fxe4 12. dxe4 d5 13. exd5 exd5 14. Bd3 Nf5 15. Qh2 Qe7 16. Bd2 Nd6 {0-1 (36) Hou,Y (2609)-Shirov,A (2696) Tromsoe 2013}) 9... Qc7 {[%emt 0:04:45]} 10. Bb3 {[%emt 0:00:51]} dxc3 {[%emt 0:01:12]} 11. dxc3 {[%emt 0:00:08]} d6 {[%emt 0:00:31]} 12. h3 {[%emt 0:00:20]} Be6 {[%emt 0:02:52]} 13. Bxe6 {[%emt 0:00:44]} fxe6 {[%emt 0:00:05]} 14. Qd3 {[%emt 0:00:13]} e5 {[%emt 0:04:07]} 15. Be3 {[%emt 0:02:19]} e6 $146 {[%emt 0:01:19]} (15... Nf7 16. h4 Rac8 {1-0 (33) Perunovic,M (2589)-Stamenkovic,D (2412) Subotica 2008}) 16. Rd1 {[%emt 0:11:40]} Rad8 {[%emt 0:01:17]} 17. c4 {[%emt 0:01:10]} Qa5+ {[%emt 0:07:35]} 18. Qd2 {[%emt 0:04:45]} Qxd2+ {[%emt 0:05:06]} 19. Rxd2 {[%emt 0:00:05]} Nf7 {[%emt 0:02:14]} 20. O-O {[%emt 0:02:35]} Rc8 {[%emt 0:01:18]} 21. b3 {[%emt 0:01:02]} a6 {[%emt 0:00:37]} 22. a4 {[%emt 0:00:47]} Rc6 {[%emt 0:03:15]} 23. Rfd1 {[%emt 0:04:43]} b6 {[%emt 0:09:03]} 24. Nc3 {[%emt 0:00:33]} Rd8 {[%emt 0:05:40]} 25. Na2 {[%emt 0:00:45]} a5 {[%emt 0:01:14]} 26. Nc3 {[%emt 0:02:05]} Rd7 {[%emt 0:00:45]} 27. Nb5 {[%emt 0:03:31]} Kf8 {[%emt 0:09:44]} 28. g4 {[%emt 0:05:23]} g5 {[%emt 0:03:31]} 29. Kg2 {[%emt 0:04:06]} h6 {[%emt 0:00:38]} 30. Rd3 {[%emt 0:02:09]} Ke7 {[%emt 0:01:11]} 31. Bc1 {[%emt 0:00:24]} Bf8 {[%emt 0:02:09]} 32. Kg3 {[%emt 0:06:42]} Kf6 {[%emt 0:01:18]} 33. h4 {[%emt 0:02:48]} Kg6 {[%emt 0:00:49]} 34. hxg5 {[%emt 0:03:21]} hxg5 {[%emt 0:00:06]} 35. Kg2 {[%emt 0:01:54]} Bh6 {[%emt 0:02:49]} 36. Rh1 {[%emt 0:03:56]} Rd8 {[%emt 0:01:41]} 37. Ba3 {[%emt 0:04:02]} Rd7 {[%emt 0:00:52]} 38. Nc3 {[%emt 0:05:33]} Nd8 {[%emt 0:06:29]} 39. Rdh3 {[%emt 0:02:28]} Nf7 {[%emt 0:03:27]} 40. Bc1 {[%emt 0:00:00]} Rd8 {[%emt 0:02:12]} 41. Be3 {[%emt 0:03:27]} Rd7 {[%emt 0:03:50]} 42. Rh5 {[%emt 0:07:17]} Rd8 {[%emt 0:02:07]} 43. R1h3 {[%emt 0:02:48]} Rd7 {[%emt 0:02:19]} 44. Rf3 {[%emt 0:00:55]} Re7 {[%emt 0:00:45]} 45. Ne2 {[%emt 0:01:09]} Rb7 {[%emt 0:01:23]} 46. Ng3 {[%emt 0:02:16]} Nd8 {[%emt 0:07:02]} 47. Rxh6+ {[%emt 0:08:31]} Kxh6 {[%emt 0:00:44]} 48. Rf6+ {[%emt 0:00:04]} Kh7 {[%emt 0:00:34]} 49. Bxg5 {[%emt 0:00:09]} Rc8 {[%emt 0:03:24]} 50. Rf8 {[%emt 0:08:40]} Rbb8 {[%emt 0:08:54]} 51. Nh5 {[%emt 0:03:54]} Kg6 {[%emt 0:07:13]} 52. Rg8+ {[%emt 0:01:54]} Kf7 {[%emt 0:00:06]} 53. Rg7+ {[%emt 0:00:39]} Ke8 {[%emt 0:00:19]} 54. Nf6+ {[%emt 0:07:03]} Kf8 {[%emt 0:00:03]} 55. Bh6 {[%emt 0:00:43]} Nf7 {[%emt 0:00:09]} 56. Nd7+ {[%emt 0:07:07]} Ke8 {[%emt 0:00:27]} 57. Nxb8 {[%emt 0:00:19]} Nxh6 {[%emt 0:00:05]} 58. g5 {[%emt 0:03:05]} Rxb8 {[%emt 0:01:04]} 59. gxh6 {[%emt 0:00:05]} Kf8 {[%emt 0:00:08]} 60. Kg3 {[%emt 0:00:51]} Re8 {[%emt 0:00:20]} 61. Kg4 {[%emt 0:00:26]} d5 {[%emt 0:01:30]} 62. cxd5 {[%emt 0:00:08]} exd5 {[%emt 0:00:06]} 63. exd5 {[%emt 0:00:05]} Rd8 {[%emt 0:00:05]} 64. Rg6 {[%emt 0:01:38]} Kf7 {[%emt 0:01:58]} 65. Kf5 {[%emt 0:00:09]} Rxd5 {[%emt 0:01:51]} 66. h7 {[%emt 0:00:21]} e4+ {[%emt 0:00:10]} 67. Kxe4 {[%emt 0:00:05]} Rh5 {[%emt 0:00:11]} 68. Rxb6 {[%emt 0:00:09]} Kg7 {[%emt 0:00:21]} 69. Rb5 {[%emt 0:00:44]} Rh4+ {[%emt 0:00:11]} 70. Ke3 {[%emt 0:00:15]} Kxh7 {[%emt 0:00:05]} 71. Rxa5 {[%emt 0:00:05]} Rh3+ {[%emt 0:00:17]} 72. f3 {[%emt 0:00:04]} Rh1 {[%emt 0:00:01]} 73. Rb5 {[%emt 0:00:18]} Ra1 {[%emt 0:00:10]} 74. a5 {[%emt 0:00:26]} Kg7 {[%emt 0:00:31]} 75. b4 {[%emt 0:00:07]} Kf7 {[%emt 0:00:02]} 76. Rb6 {[%emt 0:00:13]} Ke7 {[%emt 0:00:09]} 77. a6 {[%emt 0:00:39]} Kd7 {[%emt 0:00:02]} 78. Rb7+ {[%emt 0:00:13]} Kc8 {[%emt 0:00:20]} 79. b5 {[%emt 0:00:03]} Ra4 {[%emt 0:00:09]} 80. f4 {[%emt 0:00:33]} Ra5 {[%emt 0:00:17]} 81. f5 {[%emt 0:00:31]} Ra1 {[%emt 0:00:06]} 82. f6 {[%emt 0:00:43]} Re1+ {[%emt 0:00:11]} 83. Kd4 {[%emt 0:00:18]} Rd1+ {[%emt 0:00:10]} 84. Kc5 {[%emt 0:00:11]} Rc1+ {[%emt 0:00:12]} 85. Kb6 {[%emt 0:00:11]} Rf1 {[%emt 0:00:06]} 86. Rc7+ {[%emt 0:00:49]} Kd8 {[%emt 0:00:07]} 87. Rc6 {[%emt 0:01:10]} 1-0

[Event "EIWCC 2017"]
[Site "Riga"]
[Date "2017.04.13"]
[Round "3"]
[White "Gevorgyan, Maria"]
[Black "Ziaziulkina, Nastassia"]
[Result "1/2-1/2"]
[ECO "B84"]
[WhiteElo "2227"]
[BlackElo "2387"]
[Annotator "NA"]
[PlyCount "123"]
[EventDate "2017.??.??"]
[EventType "swiss"]
[EventCountry "LAT"]
[SourceTitle "playchess.com"]
[Source "ChessBase"]
[SourceQuality "1"]
[TimeControl "40/5400+30:1800+30"]

1. e4 {[%emt 0:00:00]} c5 {[%emt 0:00:17]} 2. Nf3 {[%emt 0:00:00]} d6 {[%emt 0:01:56]} 3. d4 {[%emt 0:00:14]} cxd4 {[%emt 0:00:12]} 4. Nxd4 {[%emt 0:00:06]} Nf6 {[%emt 0:00:17]} 5. Nc3 {[%emt 0:00:06]} a6 {[%emt 0:00:29]} 6. Be2 {[%emt 0:00:40]} e6 {[%emt 0:01:09]} 7. O-O {[%emt 0:00:32]} Be7 {[%emt 0:01:32]} 8. f4 {[%emt 0:00:34]} O-O {[%emt 0:02:06]} 9. Kh1 {[%emt 0:00:36]} Qc7 {[%emt 0:02:40]} 10. a4 {[%emt 0:00:50]} b6 {[%emt 0:04:41]} 11. Be3 {[%emt 0:02:15]} Bb7 {[%emt 0:00:57]} 12. Bf3 {[%emt 0:03:26]} Nbd7 {[%emt 0:03:06]} 13. Qe1 {[%emt 0:09:23]} Rad8 {[%emt 0:15:37]} 14. Rd1 {[%emt 0:22:24]} Nc5 {[%emt 0:08:54]} 15. Bc1 {[%emt 0:00:47]} Qb8 $16 {[%emt 0:11:15]} (15... Rfe8 $15 {stays ahead.}) 16. b4 {[%emt 0:16:11]} Ncd7 {[%emt 0:00:26]} 17. f5 {[%emt 0:12:10]} e5 {[%emt 0:04:05]} 18. Nb3 {[%emt 0:01:33]} Qc8 {[%emt 0:09:23]} 19. g4 {[%emt 0:07:21]} d5 {[%emt 0:13:44]} 20. Nxd5 {[%emt 0:00:06]} Nxd5 {[%emt 0:00:09]} 21. exd5 {[%emt 0:00:08]} Qxc2 {[%emt 0:00:10]} 22. d6 {[%emt 0:00:28]} Bh4 {[%emt 0:00:47]} 23. Qd2 {[%emt 0:05:25]} Bxf3+ {[%emt 0:01:33]} 24. Rxf3 {[%emt 0:00:04]} Qe4 {[%emt 0:01:09]} 25. Qg2 {[%emt 0:00:19]} Be1 {[%emt 0:06:26]} 26. f6 {[%emt 0:07:46]} Nxf6 {[%emt 0:05:11]} 27. Rxf6 {[%emt 0:00:05]} Qxg2+ {[%emt 0:00:05]} 28. Kxg2 {[%emt 0:00:03]} gxf6 {[%emt 0:00:08]} 29. Rxe1 {[%emt 0:00:03]} Rxd6 {[%emt 0:00:09]} 30. Nd2 {[%emt 0:00:01]} Rc8 {[%emt 0:02:16]} 31. Ne4 {[%emt 0:01:06]} Rc2+ {[%emt 0:00:53]} 32. Kh1 {[%emt 0:04:12]} Rdc6 {[%emt 0:01:38]} 33. Be3 {[%emt 0:01:30]} Rb2 {[%emt 0:00:10]} 34. Rd1 {[%emt 0:01:18]} Kf8 {[%emt 0:02:32]} 35. Ng3 {[%emt 0:04:12]} Rcc2 {[%emt 0:00:36]} 36. Nf5 {[%emt 0:00:54]} Rxh2+ {[%emt 0:01:04]} 37. Kg1 {[%emt 0:00:01]} Rbg2+ {[%emt 0:00:40]} 38. Kf1 {[%emt 0:00:00]} Rh1+ {[%emt 0:00:34]} 39. Kxg2 {[%emt 0:00:01]} Rxd1 {[%emt 0:00:07]} 40. Bxb6 {[%emt 0:00:00]} Ke8 {[%emt 0:00:51]} 41. b5 {[%emt 0:09:26]} axb5 {[%emt 0:02:05]} 42. axb5 {[%emt 0:00:17]} Kd7 {[%emt 0:02:43]} 43. Be3 {[%emt 0:00:35]} Ke6 {[%emt 0:01:33]} 44. b6 {[%emt 0:00:46]} Rb1 {[%emt 0:04:13]} 45. Kf3 {[%emt 0:01:20]} Rb4 {[%emt 0:00:30]} 46. Ng3 {[%emt 0:00:44]} Kd5 {[%emt 0:00:32]} 47. Nh5 {[%emt 0:03:04]} Ke6 {[%emt 0:00:31]} 48. Ng7+ {[%emt 0:00:08]} Kd7 {[%emt 0:01:41]} 49. Nf5 {[%emt 0:03:46]} Ke6 {[%emt 0:00:23]} 50. Nh6 {[%emt 0:00:04]} Ra4 {[%emt 0:05:26]} 51. Ke2 {[%emt 0:00:56]} Kd5 {[%emt 0:00:40]} 52. Kd3 {[%emt 0:10:16]} Ra3+ {[%emt 0:01:42]} 53. Kd2 {[%emt 0:00:11]} Ke6 {[%emt 0:02:41]} 54. Nf5 {[%emt 0:07:01]} Ra4 {[%emt 0:01:37]} 55. Nh6 {[%emt 0:00:42]} Ra3 {[%emt 0:01:20]} 56. Bc5 {[%emt 0:00:19]} Ra5 {[%emt 0:00:49]} 57. Bg1 {[%emt 0:00:04]} Ra1 {[%emt 0:01:06]} 58. Kc2 {[%emt 0:00:21]} Kd7 {[%emt 0:00:37]} 59. Be3 {[%emt 0:00:32]} Ra3 {[%emt 0:01:02]} 60. Bc1 {[%emt 0:01:21]} Ra6 {[%emt 0:00:36]} 61. Be3 {[%emt 0:00:10]} Ra3 {[%emt 0:00:07]} 62. Kd2 {[%emt 0:00:03]} 1/2-1/2